bitfinex/quotes_SOLUSD_20260222
["timestamp","ask_amount","ask_price","bid_price","bid_amount"]
[1771719011197,0.26614145,85.219,85.184,0.47202385]
[1771719012489,0.26614145,85.217,85.184,0.47202385]
[1771719014294,0.26614145,85.217,85.186,0.47777479]
[1771719015280,0.26614145,85.215,85.186,0.47777479]
[1771719018098,0.26614145,85.233,85.188,0.47777479]
[1771719018280,0.26614145,85.23,85.188,0.47777479]
[1771719024278,0.26614145,85.228,85.19,0.47777479]
[1771719030297,0.26614145,85.226,85.192,0.47777479]
[1771719036302,0.26614145,85.226,85.181,29.34893861]
[1771719036303,0.26614145,85.224,85.194,0.47777479]
[1771719042110,29.33109629,85.234,85.194,0.47777479]
[1771719042111,0.26614145,85.222,85.194,0.47777479]
[1771719042913,0.26614145,85.222,85.196,0.48824534]
[1771719043413,11.7308933,85.245,85.196,0.5]
[1771719043621,11.7308933,85.245,85.197,0.5]
[1771719045202,3.69383402,85.254,85.199,0.5]
[1771719048020,11.72979249,85.253,85.201,0.5]
[1771719050616,11.72979249,85.253,85.203,0.5]
[1771719052311,11.72979249,85.253,85.205,0.5]
[1771719053814,11.72979249,85.253,85.206,11.7362627]
[1771719054018,11.72979249,85.253,85.207,0.5]
[1771719055123,0.28432314,85.264,85.209,0.5]
[1771719058024,11.72841678,85.263,85.211,0.5]
[1771719062327,11.72841678,85.263,85.213,0.5]
[1771719065329,11.72841678,85.263,85.215,0.5]
[1771719068816,0.28432314,85.267,85.217,0.5]
[1771719072538,0.28432314,85.265,85.219,0.5]
[1771719074741,0.28432314,85.265,85.221,0.5]
[1771719074742,11.72827922,85.264,85.221,0.5]
[1771719078131,41.04223831,85.278,85.223,0.5]
[1771719078324,41.04223831,85.278,85.225,0.5]
[1771719080717,29.31588451,85.278,85.227,0.5]
[1771719082224,3.69383402,85.285,85.227,0.5]
[1771719082942,3.69383402,85.281,85.229,0.5]
[1771719084739,0.2,85.28,85.239,0.45257584]
[1771719084924,0.1,85.279,85.243,0.45257584]
[1771719086640,0.1,85.279,85.245,0.45257584]
[1771719088744,0.1,85.279,85.247,0.45257584]
[1771719092654,0.1,85.279,85.249,0.45257584]
[1771719095755,0.1,85.279,85.251,0.45257584]
[1771719097354,0.1,85.279,85.231,0.45257584]
[1771719098238,0.1,85.279,85.233,0.49360334]
[1771719100354,0.1,85.279,85.235,0.49360334]
[1771719102833,0.1,85.279,85.237,0.49360334]
[1771719103860,0.38432314,85.275,85.232,0.49360334]
[1771719104049,0.1,85.272,85.227,0.49360334]
[1771719110668,0.1,85.272,85.229,0.49360334]
[1771719119172,0.1,85.272,85.231,0.49360334]
[1771719120973,0.1,85.28,85.231,0.49360334]
[1771719120974,0.1,85.278,85.231,0.49360334]
[1771719121366,0.1,85.278,85.233,0.49360334]
[1771719123563,0.1,85.278,85.235,0.49360334]
[1771719125878,0.1,85.278,85.237,0.49360334]
[1771719126878,0.1,85.28,85.237,0.49360334]
[1771719128175,0.1,85.28,85.239,0.49481115]
[1771719128680,0.2,85.28,85.239,0.49481115]
[1771719129984,0.1,85.279,85.241,0.49481115]
[1771719132181,0.1,85.279,85.243,0.45192003]
[1771719134388,0.1,85.279,85.245,0.45192003]
[1771719136993,0.1,85.279,85.246,11.73075569]
[1771719137185,0.1,85.279,85.247,0.45192003]
[1771719142370,0.1,85.279,85.249,0.45192003]
[1771719145197,0.1,85.279,85.251,0.45192003]
[1771719148897,0.1,85.279,85.253,0.45192003]
[1771719152402,0.1,85.279,85.255,0.45192003]
[1771719154207,0.1,85.279,85.256,11.72937975]
[1771719154505,0.1,85.279,85.257,0.45192003]
[1771719160707,0.1,85.279,85.259,0.47039569]
[1771719178315,0.1,85.28,85.26,11.72882946]
[1771719178522,0.1,85.28,85.261,0.47039569]
[1771719181722,0.1,85.279,85.261,0.47039569]
[1771719187838,0.1,85.28,85.261,0.47039569]
[1771719191140,0.1,85.279,85.261,0.47039569]
[1771719191324,0.1,85.279,85.223,0.4625023]
[1771719191524,0.1,85.279,85.225,0.4625023]
[1771719193641,0.1,85.279,85.227,0.47693198]
[1771719195437,0.1,85.279,85.229,0.47693198]
[1771719201639,0.1,85.279,85.231,0.47693198]
[1771719203148,0.1,85.279,85.233,0.47693198]
[1771719204950,0.1,85.275,85.233,0.47693198]
[1771719205152,0.1,85.272,85.224,11.73366109]
[1771719205341,0.1,85.272,85.225,0.47693198]
[1771719206433,0.1,85.272,85.184,35.0]
[1771719206434,0.1,85.271,85.227,0.47693198]
[1771719208733,0.1,85.271,85.229,0.47693198]
[1771719213954,0.1,85.271,85.231,0.47693198]
[1771719220079,0.1,85.271,85.233,0.49236772]
[1771719222576,0.1,85.271,85.234,11.73240725]
[1771719222769,0.1,85.271,85.235,0.49236772]
[1771719224685,0.1,85.271,85.237,0.49236772]
[1771719225968,0.1,85.271,85.238,11.73185668]
[1771719226170,0.1,85.271,85.239,0.49236772]
[1771719231995,0.1,85.271,85.241,0.49236772]
[1771719234279,0.1,85.271,85.242,11.73130616]
[1771719234501,0.1,85.271,85.243,0.49236772]
[1771719237799,0.1,85.271,85.244,11.73103092]
[1771719237997,0.1,85.271,85.245,0.49236772]
[1771719249813,0.1,85.271,85.236,0.45775545]
[1771719252701,0.1,85.271,85.21,0.49238615]
[1771719253024,0.1,85.271,85.211,0.49238615]
[1771719257417,0.1,85.265,85.213,0.49238615]
[1771719257604,0.1,85.263,85.213,0.49238615]
[1771719270433,0.1,85.261,85.215,0.49238615]
[1771719270740,0.1,85.257,85.215,0.49238615]
[1771719270946,0.1,85.255,85.215,0.49238615]
[1771719276329,0.1,85.255,85.216,11.73488546]
[1771719276542,0.1,85.255,85.217,0.49238615]
[1771719287061,0.1,85.255,85.207,0.48736057]
[1771719291450,0.1,85.253,85.207,0.48736057]
[1771719294766,0.38432314,85.249,85.207,0.48736057]
[1771719294975,0.1,85.248,85.207,0.48736057]
[1771719297170,0.1,85.246,85.207,0.48736057]
[1771719298356,0.1,85.243,85.207,0.48736057]
[1771719298569,3.69383402,85.24,85.197,0.48736057]
[1771719298773,3.69383402,85.24,85.165,35.0]
[1771719298774,0.1,85.238,85.188,0.48736057]
[1771719298971,0.1,85.238,85.172,0.48736057]
[1771719298972,0.1,85.237,85.172,0.48736057]
[1771719299159,3.69383402,85.24,85.172,0.48736057]
[1771719299160,0.1,85.228,85.172,0.48736057]
[1771719300477,0.1,85.228,85.174,0.48736057]
[1771719301475,3.69383402,85.225,85.176,0.48736057]
[1771719301669,0.1,85.223,85.176,0.48736057]
[1771719304282,11.73392159,85.223,85.178,0.48736057]
[1771719304471,0.1,85.222,85.178,0.48736057]
[1771719308976,0.1,85.222,85.179,11.73998285]
[1771719309165,0.1,85.222,85.18,0.45671457]
[1771719314979,0.1,85.222,85.182,0.48077884]
[1771719319693,0.1,85.231,85.184,0.48077884]
[1771719319898,11.73295787,85.23,85.184,0.48077884]
[1771719320195,0.1,85.229,85.184,0.48077884]
[1771719321297,11.73295787,85.23,85.184,0.48077884]
[1771719321298,0.1,85.226,85.184,0.48077884]
[1771719326805,0.1,85.226,85.186,0.48077884]
[1771719332691,0.1,85.226,85.187,11.73888034]
[1771719332904,0.1,85.226,85.188,0.48077884]
[1771719335215,0.1,85.224,85.188,0.48077884]
[1771719338926,0.1,85.223,85.188,0.48077884]
[1771719342229,0.1,85.219,85.171,0.45143955]
[1771719342420,3.69383402,85.221,85.172,0.45143955]
[1771719342621,41.06824368,85.224,85.172,0.45143955]
[1771719342808,41.16824368,85.224,85.172,0.45143955]
[1771719343929,11.73378391,85.224,85.174,0.45143955]
[1771719344324,0.1,85.229,85.176,0.45143955]
[1771719346330,0.14216157,85.226,85.178,0.45143955]
[1771719346638,0.1,85.224,85.178,0.45143955]
[1771719350636,0.1,85.224,85.18,0.45143955]
[1771719356244,0.1,85.224,85.181,11.73970721]
[1771719356540,0.1,85.224,85.182,0.45143955]
[1771719358744,0.1,85.223,85.184,0.45143955]
[1771719362643,0.1,85.223,85.186,0.45143955]
[1771719376457,0.1,85.223,85.188,0.47833783]
[1771719380660,11.73378391,85.224,85.152,35.0]
[1771719380661,11.73378391,85.224,85.19,0.47833783]
[1771719380851,11.83295787,85.23,85.19,0.47833783]
[1771719381636,0.1,85.229,85.19,0.47833783]
[1771719386166,0.1,85.229,85.192,0.47833783]
[1771719390160,0.1,85.229,85.193,11.73805359]
[1771719390364,11.73213196,85.236,85.194,0.47833783]
[1771719390746,0.1,85.235,85.194,0.47833783]
[1771719395169,0.1,85.235,85.196,0.47833783]
[1771719399069,3.69383402,85.244,85.198,0.45876306]
[1771719400379,0.1,85.256,85.2,0.45876306]
[1771719406577,0.1,85.252,85.202,0.45876306]
[1771719409990,11.82892367,85.26,85.204,0.45876306]
[1771719410284,0.1,85.259,85.204,0.45876306]
[1771719411689,3.69383402,85.275,85.204,0.45876306]
[1771719411890,3.79383402,85.28,85.218,0.45876306]
[1771719412086,0.1,85.279,85.224,0.45876306]
[1771719415802,11.8262163,85.279,85.234,0.45876306]
[1771719416994,0.1,85.278,85.234,0.45876306]
[1771719420785,0.1,85.278,85.236,0.45876306]
[1771719420987,0.1,85.278,85.237,0.45876306]
[1771719422602,0.1,85.28,85.243,0.45876306]
[1771719424085,0.1,85.279,85.243,0.45876306]
[1771719424802,0.1,85.279,85.196,35.24]
[1771719424803,0.1,85.276,85.225,11.733548]
[1771719425005,0.1,85.274,85.229,0.45876306]
[1771719426702,0.1,85.274,85.231,0.45876306]
[1771719430792,0.1,85.27,85.203,0.49285296]
[1771719436492,3.69383402,85.267,85.204,11.73653819]
[1771719436816,0.1,85.265,85.205,0.45590461]
[1771719442525,0.1,85.26,85.205,0.45590461]
[1771719446135,0.1,85.255,85.205,0.45590461]
[1771719448334,0.1,85.25,85.192,0.45590461]
[1771719449510,0.1,85.245,85.192,0.45590461]
[1771719452636,0.1,85.24,85.192,0.45590461]
[1771719454922,0.1,85.238,85.192,0.45590461]
[1771719455915,0.1,85.235,85.192,0.45590461]
[1771719457139,0.1,85.23,85.192,0.45590461]
[1771719460340,0.1,85.228,85.192,0.45590461]
[1771719466252,0.1,85.226,85.192,0.45590461]
[1771719472231,0.1,85.224,85.192,0.45590461]
[1771719477352,0.1,85.223,85.192,0.45590461]
[1771719478539,0.1,85.223,85.171,11.74099762]
[1771719480539,0.1,85.223,85.174,0.47276709]
[1771719480735,3.69383402,85.221,85.174,0.47276709]
[1771719481068,0.46856647,85.197,85.142,11.74504385]
[1771719481239,0.46856647,85.195,85.142,11.74504385]
[1771719481436,0.28432314,85.192,85.13,11.94664189]
[1771719481737,0.46856647,85.185,85.13,11.94664189]
[1771719482434,0.28432314,85.178,85.13,0.2]
[1771719482641,0.46856647,85.175,85.13,0.2]
[1771719482840,0.46856647,85.175,85.137,0.47276709]
[1771719483566,0.46856647,85.173,85.137,0.47276709]
[1771719485950,41.09331704,85.172,85.14,0.67276709]
[1771719486149,0.46856647,85.171,85.14,0.67276709]
[1771719487167,0.46856647,85.169,85.14,0.67276709]
[1771719488963,0.45242312,85.167,85.141,0.48853223]
[1771719490352,3.69383402,85.181,85.142,0.48853223]
[1771719490758,4.14625714,85.181,85.142,0.48853223]
[1771719491062,0.45242312,85.18,85.142,0.48853223]
[1771719492270,11.73998285,85.179,85.142,0.48853223]
[1771719493473,0.49752032,85.179,85.142,0.48853223]
[1771719495362,41.0904224,85.178,85.142,0.48853223]
[1771719495554,0.49752032,85.177,85.142,0.48853223]
[1771719498865,11.74039635,85.176,85.142,0.48853223]
[1771719499157,0.49752032,85.175,85.142,0.48853223]
[1771719501874,0.49752032,85.173,85.142,0.48853223]
[1771719503894,0.49752032,85.171,85.14,0.2]
[1771719504093,0.49752032,85.165,85.133,0.47106122]
[1771719504257,0.49752032,85.161,85.128,0.47106122]
[1771719504575,0.49752032,85.155,85.12,0.2]
[1771719506492,0.49752032,85.153,85.12,0.2]
[1771719507185,0.49752032,85.153,85.12,1e-08]
[1771719508570,0.49752032,85.151,85.12,1e-08]
[1771719509078,0.49752032,85.145,85.1,0.2]
[1771719511085,0.49752032,85.143,85.106,0.02920586]
[1771719511969,0.49752032,85.137,85.1,0.2]
[1771719512175,0.49752032,85.125,85.084,0.02920586]
[1771719512484,0.49752032,85.125,85.088,0.02920586]
[1771719513384,0.49752032,85.123,85.088,0.02920586]
[1771719513963,0.49752032,85.123,85.091,0.02920586]
[1771719514162,11.74756825,85.124,85.092,0.22920587]
[1771719515471,0.28432314,85.135,85.092,0.22920587]
[1771719516170,0.49752032,85.134,85.092,0.22920587]
[1771719516681,0.49752032,85.132,85.092,0.22920587]
[1771719518671,0.45694705,85.156,85.094,0.22920587]
[1771719519495,0.45694705,85.154,85.094,0.22920587]
[1771719521392,0.45694705,85.152,85.096,0.22920587]
[1771719521694,0.45694705,85.149,85.096,0.22920587]
[1771719522191,0.45694705,85.145,85.096,0.22920587]
[1771719522376,0.45694705,85.135,85.096,0.22920587]
[1771719523793,0.45694705,85.135,85.08,0.2]
[1771719523794,0.5,85.125,85.08,0.2]
[1771719524186,0.5,85.125,85.089,11.75239763]
[1771719524793,0.5,85.125,85.084,11.75303374]
[1771719526793,0.5,85.123,85.08,0.2]
[1771719529098,0.5,85.127,85.08,0.2]
[1771719529297,0.5,85.127,85.091,11.75212419]
[1771719531597,0.5,85.125,85.091,11.75212419]
[1771719533083,0.5,85.134,85.091,11.75212419]
[1771719533496,12.24632633,85.133,85.091,11.75212419]
[1771719534608,0.5,85.132,85.091,11.75212419]
[1771719536706,0.5,85.13,85.091,11.75212419]
[1771719539705,0.5,85.128,85.091,11.75212419]
[1771719540810,0.5,85.128,85.085,11.75284008]
[1771719541019,0.5,85.124,85.08,11.95361539]
[1771719546216,0.5,85.122,85.091,11.75212419]
[1771719546603,11.74770626,85.123,85.091,11.75212419]
[1771719547613,0.5,85.128,85.091,11.75212419]
[1771719547814,11.746862,85.13,85.091,11.75212419]
[1771719548114,0.5,85.129,85.091,11.75212419]
[1771719549614,0.5,85.127,85.091,11.75212419]
[1771719552219,11.74729224,85.126,85.091,11.75212419]
[1771719552523,0.5,85.125,85.091,11.75212419]
[1771719556726,0.5,85.123,85.091,11.75212419]
[1771719560223,0.5,85.121,85.087,11.75255568]
[1771719562428,0.5,85.121,85.091,11.75212419]
[1771719562732,0.5,85.119,85.091,11.75212419]
[1771719562924,29.36707625,85.13,85.091,11.75212419]
[1771719562925,0.5,85.142,85.091,11.75212419]
[1771719563121,11.74508468,85.142,85.092,0.28432314]
[1771719563629,0.5,85.141,85.092,0.28432314]
[1771719564828,11.74536058,85.14,85.093,41.13146791]
[1771719565812,0.5,85.143,85.093,41.13146791]
[1771719568231,0.5,85.143,85.095,0.28432314]
[1771719569832,0.5,85.143,85.094,35.0]
[1771719569833,0.5,85.149,85.097,0.28432314]
[1771719570422,0.5,85.147,85.097,0.28432314]
[1771719571626,0.5,85.169,85.099,0.28432314]
[1771719573612,0.5,85.169,85.108,0.28432314]
[1771719573812,0.5,85.167,85.108,0.28432314]
[1771719574213,0.5,85.167,85.108,3.97815716]
[1771719575247,0.5,85.167,85.11,0.28432314]
[1771719575453,0.5,85.172,85.11,0.28432314]
[1771719576540,0.5,85.172,85.112,5.64518502]
[1771719577739,0.5,85.172,85.114,0.28432314]
[1771719578946,0.5,85.172,85.116,0.28432314]
[1771719579441,0.5,85.172,85.122,0.28432314]
[1771719579654,11.73941188,85.184,85.124,0.28432314]
[1771719579655,0.5,85.183,85.124,0.28432314]
[1771719581145,0.5,85.183,85.126,0.28432314]
[1771719581648,0.5,85.181,85.126,0.28432314]
[1771719582740,0.5,85.181,85.125,41.11600586]
[1771719582741,0.5,85.181,85.128,0.28432314]
[1771719584948,0.5,85.181,85.13,0.28432314]
[1771719586054,0.5,85.181,85.132,0.28432314]
[1771719587052,0.5,85.181,85.134,0.28432314]
[1771719589454,0.5,85.181,85.136,0.28432314]
[1771719589754,0.5,85.179,85.135,41.11117636]
[1771719590161,0.5,85.179,85.136,0.28432314]
[1771719590837,0.5,85.179,85.138,0.28432314]
[1771719592151,0.5,85.179,85.14,0.28432314]
[1771719592331,0.5,85.179,85.142,0.28432314]
[1771719595838,0.5,85.179,85.143,11.74494673]
[1771719596760,0.5,85.179,85.144,35.0]
[1771719597342,0.5,85.179,85.145,11.74467085]
[1771719602961,11.74012068,85.178,85.14,0.14216157]
[1771719603261,0.5,85.177,85.122,0.14216157]
[1771719603457,0.5,85.177,85.122,35.0]
[1771719603862,0.5,85.177,85.123,0.14216157]
[1771719604062,0.5,85.177,85.122,35.0]
[1771719604658,0.5,85.177,85.123,0.14216157]
[1771719604858,0.5,85.177,85.122,35.0]
[1771719605058,9.80284233,85.21,85.123,11.74770626]
[1771719605059,0.5,85.175,85.123,11.74770626]
[1771719606343,3.69383402,85.171,85.104,0.48482508]
[1771719606544,0.48374134,85.157,85.099,0.48482508]
[1771719606759,0.48374134,85.145,85.099,0.48482508]
[1771719611567,0.46434444,85.143,85.101,0.49911538]
[1771719615187,0.45566882,85.141,85.103,0.46359012]
[1771719617275,0.45566882,85.139,85.103,0.46359012]
[1771719623164,0.45566882,85.137,85.103,0.46359012]
[1771719625255,0.45566882,85.135,85.103,0.46359012]
[1771719627287,58.71729083,85.154,85.09,0.2]
[1771719627288,0.45566882,85.131,85.09,0.2]
[1771719627463,0.45566882,85.125,85.09,0.2]
[1771719627662,0.45566882,85.125,85.091,0.46359012]
[1771719628360,0.45566882,85.125,85.09,0.2]
[1771719628568,0.45566882,85.123,85.09,0.2]
[1771719630163,0.45566882,85.123,85.08,0.2]
[1771719630364,0.45566882,85.123,85.081,0.46359012]
[1771719630986,0.45566882,85.115,85.08,0.2]
[1771719632376,0.45566882,85.113,85.08,0.2]
[1771719632983,0.45566882,85.113,85.081,0.46359012]
[1771719633389,0.45566882,85.113,85.08,0.2]
[1771719634672,0.45566882,85.111,85.08,0.66359012]
[1771719635390,0.45566882,85.111,85.081,0.46359012]
[1771719637090,0.45566882,85.109,85.081,0.46359012]
[1771719637803,0.45566882,85.109,85.08,0.2]
[1771719639391,11.74977675,85.108,85.08,0.2]
[1771719639571,0.47604182,85.107,85.08,0.2]
[1771719647185,0.47604182,85.105,85.081,0.45699692]
[1771719650184,0.47604182,85.103,85.081,0.45699692]
[1771719653102,0.47604182,85.101,85.081,0.45699692]
[1771719654405,3.69383402,85.132,85.081,0.45699692]
[1771719654597,0.28432314,85.131,85.081,0.45699692]
[1771719654796,0.14216157,85.131,85.081,0.45699692]
[1771719655807,0.28432314,85.131,85.081,0.45699692]
[1771719656302,0.28432314,85.129,85.081,0.45699692]
[1771719656495,0.47604182,85.124,85.081,0.45699692]
[1771719659093,0.47604182,85.119,85.081,0.45699692]
[1771719661216,11.74646431,85.132,85.083,0.45699692]
[1771719661512,0.47604182,85.131,85.083,0.45699692]
[1771719663595,0.47604182,85.129,85.085,0.45699692]
[1771719664914,0.47604182,85.127,85.087,0.45699692]
[1771719668729,0.45085166,85.125,85.087,0.45699692]
[1771719670826,11.74756825,85.124,85.087,0.45699692]
[1771719671133,0.45085166,85.123,85.087,0.45699692]
[1771719674220,0.49036468,85.115,85.087,0.45699692]
[1771719674418,0.49036468,85.115,85.081,0.49092326]
[1771719676831,0.49036468,85.113,85.081,0.49092326]
[1771719681549,0.49036468,85.113,85.08,0.2]
[1771719681834,0.49036468,85.111,85.08,1e-08]
[1771719682341,0.49036468,85.111,85.08,0.49092327]
[1771719684140,11.74950064,85.11,85.08,0.49092327]
[1771719684315,0.49036468,85.109,85.08,0.49092327]
[1771719684634,0.49036468,85.109,85.08,1e-08]
[1771719684837,0.49036468,85.095,85.07,1e-08]
[1771719686320,0.49036468,85.093,85.07,1e-08]
[1771719686940,0.49036468,85.093,85.071,0.49092326]
[1771719688346,0.49036468,85.091,85.071,0.49092326]
[1771719691747,0.49036468,85.105,85.071,0.49092326]
[1771719692945,0.49036468,85.103,85.071,0.49092326]
[1771719694127,0.49036468,85.101,85.07,1e-08]
[1771719694449,0.49036468,85.095,85.07,1e-08]
[1771719696248,11.75170987,85.094,85.07,1e-08]
[1771719696447,0.49036468,85.093,85.07,1e-08]
[1771719696950,0.49036468,85.093,85.053,0.49092326]
[1771719697928,0.49036468,85.093,85.054,0.46760538]
[1771719698344,0.49832381,85.085,85.054,0.46760538]
[1771719700650,0.49832381,85.083,85.054,0.46760538]
[1771719702550,0.49832381,85.081,85.054,0.46760538]
[1771719703682,0.14216157,85.086,85.052,1e-08]
[1771719703953,0.1,85.27,85.032,0.46760538]
[1771719703954,3.69383402,85.082,85.032,0.46760538]
[1771719704331,0.28432314,85.081,85.032,0.46760538]
[1771719704564,0.28432314,85.081,85.0,29.61147509]
[1771719704565,0.49832381,85.068,85.0,0.2]
[1771719704738,15.04732503,85.081,84.947,4.70837502]
[1771719704739,0.49832381,85.054,84.947,4.70837502]
[1771719704963,0.49832381,85.035,84.95,29.42902471]
[1771719705277,0.49832381,85.035,84.922,52.92]
[1771719705278,5.88145411,85.034,84.981,11.76733622]
[1771719705467,0.49832381,85.043,84.981,41.18567679]
[1771719706077,0.49832381,85.041,84.982,0.14216157]
[1771719706393,0.49832381,85.041,84.983,0.46760538]
[1771719707272,0.49832381,85.049,84.993,0.46760538]
[1771719708157,0.49832381,85.049,84.971,3.69383402]
[1771719708158,11.75806603,85.048,84.995,0.46760538]
[1771719708668,0.49832381,85.044,84.995,0.46760538]
[1771719710560,0.49832381,85.042,84.997,0.46760538]
[1771719711879,0.49832381,85.058,85.003,0.46760538]
[1771719712670,0.49832381,85.054,85.005,0.46760538]
[1771719714472,0.49832381,85.052,85.007,0.46760538]
[1771719716483,11.75765129,85.051,85.007,0.46760538]
[1771719716783,0.49832381,85.05,85.007,0.46760538]
[1771719719890,0.49832381,85.048,85.007,0.46760538]
[1771719720595,0.49832381,85.044,84.983,0.46760538]
[1771719721589,0.49832381,85.044,84.985,0.46760538]
[1771719722285,0.49832381,85.042,84.987,0.46760538]
[1771719724794,0.49832381,85.04,84.989,0.46760538]
[1771719726903,0.28432314,85.033,84.991,0.46760538]
[1771719727201,0.49832381,85.032,84.991,0.46760538]
[1771719729095,0.45126102,85.022,84.991,0.46760538]
[1771719729298,0.45126102,85.022,84.981,0.46870075]
[1771719729993,0.45126102,85.012,84.969,0.46870075]
[1771719730594,0.45126102,85.012,84.974,0.46870075]
[1771719731102,0.45126102,85.01,84.974,0.46870075]
[1771719731779,0.45126102,85.01,84.981,0.45478312]
[1771719732992,0.48229359,85.002,84.949,0.45478312]
[1771719733299,3.69383402,85.017,84.951,0.45478312]
[1771719733300,0.48229359,85.0,84.951,0.45478312]
[1771719735500,0.48229359,84.992,84.951,0.45478312]
[1771719736583,0.48229359,84.99,84.951,0.45478312]
[1771719738804,0.48229359,84.988,84.951,0.45478312]
[1771719740792,0.48229359,84.982,84.951,0.45478312]
[1771719742087,11.76733622,84.981,84.951,0.45478312]
[1771719742402,0.48229359,84.98,84.951,0.45478312]
[1771719744502,0.48229359,84.985,84.953,0.45478312]
[1771719744683,0.48229359,85.004,84.953,0.45478312]
[1771719745000,0.48229359,85.002,84.953,0.45478312]
[1771719748105,11.76456747,85.001,84.954,11.77107611]
[1771719748305,0.48229359,85.0,84.955,0.45478312]
[1771719754094,0.48229359,84.998,84.957,0.45478312]
[1771719760023,0.46047271,84.996,84.959,0.46009692]
[1771719762102,0.46047271,84.996,84.926,58.87476781]
[1771719762103,0.46047271,84.992,84.949,0.46009692]
[1771719764899,0.46047271,84.983,84.949,0.46009692]
[1771719765920,0.46047271,84.981,84.949,0.46009692]
[1771719766122,0.46047271,84.981,84.911,166.79383402]
[1771719766123,0.46047271,84.977,84.934,0.46009692]
[1771719766326,0.46047271,84.977,84.891,35.0]
[1771719766327,0.46047271,84.959,84.868,163.1]
[1771719766624,0.46047271,84.943,84.905,11.77778293]
[1771719766827,0.46047271,84.943,84.9,11.77850114]
[1771719767023,0.46047271,84.941,84.884,29.45195796]
[1771719768122,0.46047271,84.939,84.887,11.78036684]
[1771719768324,0.46047271,84.939,84.888,0.46009692]
[1771719769224,0.46047271,84.939,84.887,11.78036684]
[1771719769225,0.46047271,84.946,84.892,0.46009692]
[1771719769526,0.46047271,84.942,84.892,0.46009692]
[1771719770311,0.46047271,84.94,84.894,0.46009692]
[1771719771508,0.46047271,84.934,84.885,0.46009692]
[1771719771714,0.46047271,84.932,84.885,0.46009692]
[1771719771927,29.42826238,84.953,84.885,0.46009692]
[1771719771928,0.46047271,84.938,84.885,0.46009692]
[1771719772229,0.46047271,84.952,84.891,0.46009692]
[1771719773534,0.46047271,84.95,84.893,0.46009692]
[1771719776027,0.46047271,84.948,84.895,0.46009692]
[1771719776532,0.46047271,84.976,84.905,0.46009692]
[1771719776741,0.46047271,84.976,84.911,0.46009692]
[1771719776923,0.46047271,84.972,84.911,0.46009692]
[1771719779440,0.46047271,84.97,84.921,0.46009692]
[1771719781427,0.46047271,84.968,84.923,0.46009692]
[1771719783765,0.46047271,84.968,84.925,0.46009692]
[1771719783946,0.46047271,84.966,84.925,0.46009692]
[1771719784938,0.34270271,84.966,84.925,0.46009692]
[1771719786643,0.34270271,84.966,84.927,0.46009692]
[1771719788648,0.34270271,84.966,84.929,0.49552932]
[1771719791046,0.45541212,84.991,84.929,0.49552932]
[1771719791262,0.45541212,84.994,84.931,0.49552932]
[1771719792030,0.49917706,84.992,84.931,0.49552932]
[1771719792231,0.28432314,84.977,84.931,0.49552932]
[1771719792528,0.49917706,84.972,84.931,0.49552932]
[1771719795630,0.49917706,84.97,84.933,0.49437979]
[1771719797653,0.49917706,84.97,84.935,0.49437979]
[1771719801346,0.49917706,84.97,84.937,0.49437979]
[1771719801552,0.49917706,84.976,84.938,0.49437979]
[1771719802858,0.49917706,84.976,84.94,0.49437979]
[1771719807352,0.49917706,84.984,84.941,11.77287764]
[1771719807551,0.49917706,84.984,84.942,0.49437979]
[1771719809861,11.76705929,84.983,84.944,0.49437979]
[1771719810036,0.49917706,84.982,84.944,0.49437979]
[1771719811960,0.49917706,84.982,84.946,0.49437979]
[1771719812958,0.49917706,85.003,84.951,0.49437979]
[1771719813160,0.49917706,85.003,84.953,0.49437979]
[1771719814848,0.49917706,85.001,84.955,0.49437979]
[1771719816566,0.49917706,85.001,84.957,0.49437979]
[1771719816943,0.49917706,84.999,84.959,0.49437979]
[1771719817549,0.49917706,84.991,84.929,0.49437979]
[1771719817857,0.49917706,84.983,84.929,0.49437979]
[1771719819964,0.47188107,84.981,84.931,0.45654491]
[1771719821465,0.47188107,84.979,84.933,0.45654491]
[1771719826071,0.47188107,84.979,84.92,3.69383402]
[1771719826072,0.47188107,84.979,84.934,41.20846774]
[1771719826264,0.47188107,84.979,84.935,0.45654491]
[1771719828256,0.47188107,84.979,84.934,41.20846774]
[1771719828257,0.47188107,84.979,84.937,0.45654491]